fUSD/lending_fUSD_20240602
["ID","MTS","AMOUNT","RATE_DAILY","PERIOD"]
[328422714,1717371111308,-2925.21,0.00032976,4]
[328422715,1717371111317,-1228.24,0.00032976,4]
[328422716,1717371111327,-1385.52,0.00032976,4]
[328422717,1717371111336,-2678.02,0.00032976,4]
[328422718,1717371111345,-5956.43,0.00032976,4]
[328422719,1717371111355,-515.87,0.00032976,4]
[328422720,1717371111365,-13746.73,0.00032976,4]
[328422721,1717371111375,-622.96,0.00032976,4]
[328422722,1717371111383,-692.01,0.00032976,4]
[328422723,1717371111392,-893.79,0.00032976,4]
[328422724,1717371111402,-638.82,0.00032976,4]
[328422725,1717371111411,-1208.18,0.00032976,4]
[328422726,1717371111420,-2419.36,0.00032976,4]
[328422727,1717371111430,-12780.6,0.00032976,4]
[328422728,1717371111439,-500.0,0.00032976,4]
[328422729,1717371111449,-737.12,0.00032976,4]
[328422730,1717371111458,-523.2,0.00032976,4]
[328422731,1717371111467,-500.0,0.00032976,4]
[328422732,1717371111476,-1277.74,0.00032976,4]
[328422733,1717371111486,-500.0,0.00032976,4]
[328422734,1717371111495,-156.77918623,0.00032989,7]
[328422735,1717371111505,-28206.89209834,0.0003299,2]
[328422736,1717371111514,-150.0,0.00032994,7]
[328422737,1717371111524,-165.31112428,0.00032999,5]
[328422738,1717371111533,-2000.0,0.00033,2]
[328422739,1717371111542,-2000.0,0.00033,2]
[328422740,1717371111551,-2000.0,0.00033,2]
[328422741,1717371111560,-2000.0,0.00033,2]
[328422742,1717371111570,-2000.0,0.00033,2]
[328422743,1717371111580,-2000.0,0.00033,2]
[328422744,1717371111590,-2000.0,0.00033,2]
[328422745,1717371111599,-2000.0,0.00033,2]
[328422746,1717371111608,-900.0,0.00033,34]
[328422747,1717371111618,-166.99118027,0.00033,5]
[328422748,1717371111629,-227.93,0.00033,8]
[328422749,1717371111639,-2000.0,0.00033,2]
[328422750,1717371111650,-16924.7884522,0.00033,3]
[328422751,1717371111662,-2000.0,0.00033,2]
[328422752,1717371111671,-1500.0,0.00033,20]
[328422753,1717371111681,-270.57036882,0.00033,4]
[328422754,1717371111690,-1701.6,0.00033,2]
[328422755,1717371111698,-197.33,0.00033,2]
[328422756,1717371111711,-20000.0,0.00033,7]
[328422757,1717371111722,-500.0,0.00033,2]
[328422758,1717371111731,-284.74612501,0.00033,120]
[328422759,1717371111740,-250.0,0.00033,10]
[328422760,1717371111751,-1450.0,0.00033,2]
[328422761,1717371111760,-716.591378,0.00033,2]
[328422762,1717371111770,-3753.36893321,0.00033003,5]
[328422763,1717371111780,-500.0,0.0003301,4]
[328422764,1717371111794,-150.0,0.00033019,7]
[328422765,1717371111805,-155.5461768,0.00033025,7]
[328422766,1717371111814,-150.0,0.00033037,7]
[328422767,1717371111825,-500.0,0.00033047,4]
[328422768,1717371111834,-500.0,0.00033047,4]
[328422769,1717371111844,-694.92,0.00033047,4]
[328422770,1717371111854,-500.0,0.00033047,4]
[328422771,1717371111863,-500.0,0.00033047,4]
[328422772,1717371111872,-798.44,0.00033047,4]
[328422773,1717371111882,-500.0,0.00033047,4]
[328422774,1717371111892,-1024.48,0.00033047,4]
[328422775,1717371111901,-797.99,0.00033047,4]
[328422776,1717371111910,-763.86,0.00033047,4]
[328422777,1717371111920,-638.9,0.00033047,4]
[328422778,1717371111929,-1096.67,0.00033047,4]
[328422779,1717371111939,-1679.78,0.00033047,4]
[328422780,1717371111948,-500.0,0.00033047,4]
[328422781,1717371111958,-500.0,0.00033047,4]
[328422782,1717371111967,-606.79,0.00033047,4]
[328422783,1717371111977,-537.93,0.00033047,4]
[328422784,1717371111986,-777.28,0.00033048,4]
[328422785,1717371111996,-500.0,0.00033048,4]
[328422786,1717371112004,-500.0,0.00033048,4]
[328422787,1717371112014,-4734.28,0.00033048,4]
[328422788,1717371112023,-500.0,0.00033048,4]
[328422789,1717371112032,-500.0,0.00033048,4]
[328422790,1717371112042,-936.92,0.00033048,4]
[328422791,1717371112051,-5685.91,0.00033048,4]
[328422792,1717371112060,-756.95,0.00033048,4]
[328422793,1717371112070,-971.06,0.00033048,4]
[328422794,1717371112079,-599.95,0.00033048,4]
[328422795,1717371112088,-1028.0,0.00033048,4]
[328422796,1717371112097,-572.72,0.00033048,4]
[328422797,1717371112107,-641.03,0.00033048,4]
[328422798,1717371112115,-1195.81,0.00033048,4]
[328422799,1717371112125,-500.0,0.00033048,4]
[328422800,1717371112134,-1051.95,0.00033048,4]
[328422801,1717371112143,-598.95,0.00033048,4]
[328422802,1717371112152,-965.74,0.00033048,4]
[328422803,1717371112161,-995.94,0.00033048,4]
[328422804,1717371112170,-626.65,0.00033048,4]
[328422805,1717371112179,-500.0,0.00033048,4]
[328422806,1717371112189,-844.41,0.00033048,4]
[328422807,1717371112198,-640.54,0.00033048,4]
[328422808,1717371112207,-1129.49,0.00033048,4]
[328422809,1717371112216,-1440.55,0.00033048,4]
[328422810,1717371112225,-3069.82,0.00033048,4]
[328422811,1717371112235,-500.0,0.00033048,4]
[328422812,1717371112243,-571.04850725,0.00033049,4]
[328422813,1717371112253,-500.0,0.00033049,4]
[328422814,1717371112261,-500.0,0.00033049,4]
[328422815,1717371112270,-881.16,0.00033049,4]
[328422816,1717371112280,-877.71,0.00033049,4]
[328422817,1717371112288,-500.0,0.00033049,4]
[328422818,1717371112297,-500.0,0.00033049,4]
[328422819,1717371112306,-500.0,0.00033049,4]
[328422820,1717371112315,-640.4,0.00033049,4]
[328422821,1717371112324,-640.75,0.00033049,4]
[328422822,1717371112333,-500.0,0.00033049,4]
[328422823,1717371112343,-500.0,0.00033049,4]
[328422824,1717371112352,-500.0,0.00033049,4]
[328422825,1717371112361,-500.0,0.00033049,4]
[328422826,1717371112369,-500.0,0.00033049,4]
[328422827,1717371112378,-584.71,0.00033049,4]
[328422828,1717371112387,-540.15,0.00033049,4]
[328422829,1717371112396,-500.0,0.00033049,4]
[328422830,1717371112405,-500.0,0.00033049,4]
[328422831,1717371112414,-500.0,0.00033049,4]
[328422832,1717371112423,-500.0,0.00033049,4]
[328422833,1717371112432,-725.51,0.00033049,4]
[328422834,1717371112442,-500.0,0.00033049,4]
[328422835,1717371112451,-693.57,0.00033049,4]
[328422836,1717371112460,-500.0,0.00033049,4]
[328422837,1717371112469,-500.0,0.00033049,4]
[328422838,1717371112478,-715.0,0.00033049,4]
[328422839,1717371112487,-698.24,0.00033049,4]
[328422840,1717371112497,-558.89,0.00033049,4]
[328422841,1717371112506,-500.0,0.00033049,4]
[328422842,1717371112515,-727.94,0.00033049,4]
[328422843,1717371112524,-500.0,0.00033049,4]
[328422844,1717371112533,-500.0,0.00033049,4]
[328422845,1717371112543,-500.0,0.00033049,4]
[328422846,1717371112552,-500.0,0.00033049,4]
[328422847,1717371112562,-898.02,0.00033049,4]
[328422848,1717371112571,-899.78,0.00033049,4]
[328422849,1717371112581,-500.0,0.00033049,4]
[328422850,1717371112590,-150.0,0.00033049,4]
[328422851,1717371112599,-500.0,0.00033049,4]
[328422852,1717371112608,-500.0,0.00033049,4]
[328422853,1717371112618,-500.0,0.00033049,4]
[328422854,1717371112627,-500.0,0.00033049,4]
[328422855,1717371112636,-542.64,0.00033049,4]
[328422856,1717371112645,-518.75,0.00033049,4]
[328422857,1717371112654,-1142.42,0.00033049,4]
[328422858,1717371112664,-500.0,0.00033049,4]
[328422859,1717371112673,-566.15,0.00033049,4]
[328422860,1717371112682,-1123.42,0.00033049,4]
[328422861,1717371112692,-1085.2,0.00033049,4]
[328422862,1717371112701,-1205.63,0.00033049,4]
[328422863,1717371112715,-500.0,0.00033049,4]
[328422864,1717371112724,-8789.4,0.00033049,4]
[328422865,1717371112734,-736.38,0.00033049,4]
[328422866,1717371112743,-797.08,0.00033049,4]
[328422867,1717371112753,-26146.55,0.00033049,4]
[328422868,1717371112763,-500.0,0.00033049,4]
[328422869,1717371112772,-553.37,0.00033049,4]
[328422870,1717371112782,-500.0,0.00033049,4]
[328422871,1717371112791,-859.62,0.00033049,4]
[328422872,1717371112803,-500.0,0.00033049,4]
[328422873,1717371112813,-500.0,0.00033049,4]
[328422874,1717371112822,-170.23672815,0.00033049,4]
[328422875,1717371112831,-500.0,0.00033049,4]
[328422876,1717371112840,-799.72,0.00033049,4]
[328422877,1717371112849,-1125.65,0.00033049,4]
[328422878,1717371112859,-514.95,0.00033049,4]
[328422879,1717371112868,-557.56900367,0.00033049,4]
[328422880,1717371112878,-7152.07,0.00033049,4]
[328422881,1717371112888,-1737.83,0.00033049,4]
[328422882,1717371112897,-1275.64,0.00033049,4]
[328422883,1717371112906,-500.0,0.00033049,4]
[328422884,1717371112915,-944.32,0.00033049,4]
[328422885,1717371112926,-508.82,0.00033049,4]
[328422886,1717371112935,-1901.92,0.00033049,4]
[328422887,1717371112945,-500.0,0.00033049,4]
[328422888,1717371112954,-500.0,0.00033049,4]
[328422889,1717371112964,-2064.47,0.00033049,4]
[328422890,1717371112973,-500.0,0.00033049,4]
[328422891,1717371112983,-500.0,0.00033049,4]
[328422892,1717371112993,-1245.2,0.00033049,4]
[328422893,1717371113003,-620.28,0.00033049,4]
[328422894,1717371113013,-1601.21,0.00033049,4]
[328422895,1717371113023,-500.0,0.00033049,4]
[328422896,1717371113032,-1827.81,0.00033049,4]
[328422897,1717371113042,-500.0,0.00033049,4]
[328422898,1717371113051,-1608.46,0.00033049,4]
[328422899,1717371113062,-500.0,0.00033049,4]
[328422900,1717371113071,-500.0,0.00033049,4]
[328422901,1717371113081,-592.97,0.00033049,4]
[328422902,1717371113091,-500.0,0.00033049,4]
[328422903,1717371113100,-751.49,0.00033049,4]
[328422904,1717371113287,-579.41060247,0.00033049,4]
[328422905,1717371113298,-866.13,0.00033049,4]
[328422906,1717371113307,-500.0,0.00033049,4]
[328422907,1717371113317,-500.0,0.00033049,4]
[328422908,1717371113327,-1306.76,0.00033049,4]
[328422909,1717371113336,-500.0,0.00033049,4]
[328422910,1717371113345,-500.0,0.00033049,4]
[328422911,1717371113355,-500.0,0.00033049,4]
[328422912,1717371113364,-500.0,0.0003305,4]
[328422913,1717371113374,-500.0,0.0003305,4]
[328422914,1717371113383,-500.0,0.0003305,4]
[328422915,1717371113393,-500.0,0.0003305,4]
[328422916,1717371113402,-573.17,0.0003305,4]
[328422917,1717371113412,-500.0,0.0003305,4]
[328422918,1717371113422,-537.13658082,0.0003305,4]
[328422919,1717371113431,-500.0,0.0003305,4]
[328422920,1717371113441,-500.0,0.0003305,4]
[328422921,1717371113451,-500.0,0.0003305,4]
[328422922,1717371113461,-271.41794216,0.0003305,4]
[328422923,1717371113470,-500.0,0.0003305,4]
[328422924,1717371113479,-500.0,0.0003305,4]
[328422925,1717371113488,-500.0,0.0003305,4]
[328422926,1717371113498,-599.18,0.0003305,4]
[328422927,1717371113507,-500.0,0.0003305,4]
[328422928,1717371113516,-500.0,0.0003305,4]
[328422929,1717371113526,-500.0,0.0003305,4]
[328422930,1717371113535,-500.0,0.0003305,4]
[328422931,1717371113545,-582.7,0.0003305,4]
[328422932,1717371113554,-500.0,0.0003305,4]
[328422933,1717371113564,-500.0,0.0003305,4]
[328422934,1717371113574,-700.2,0.0003305,4]
[328422935,1717371113583,-500.0,0.0003305,4]
[328422936,1717371113592,-500.0,0.0003305,4]
[328422937,1717371113602,-500.0,0.0003305,4]
[328422938,1717371113611,-500.0,0.0003305,4]
[328422939,1717371113620,-500.0,0.0003305,4]
[328422940,1717371113630,-500.0,0.0003305,4]
[328422941,1717371113639,-615.25,0.0003305,4]
[328422942,1717371113648,-504.71,0.0003305,4]
[328422943,1717371113658,-500.0,0.0003305,4]
[328422944,1717371113667,-500.0,0.0003305,4]
[328422945,1717371113677,-500.0,0.0003305,4]
[328422946,1717371113686,-500.0,0.0003305,4]
[328422947,1717371113696,-500.0,0.0003305,4]
[328422948,1717371113706,-500.0,0.0003305,4]
[328422949,1717371113719,-597.94,0.0003305,4]
[328422950,1717371113728,-469.07,0.0003305,4]
[328422951,1717371113738,-500.0,0.0003305,4]
[328422952,1717371113749,-500.0,0.0003305,4]
[328422953,1717371113758,-500.0,0.0003305,4]
[328422954,1717371113768,-590.01,0.0003305,4]
[328422955,1717371113780,-500.0,0.0003305,4]
[328422956,1717371113789,-592.45,0.0003305,4]
[328422957,1717371113800,-707.92,0.0003305,4]
[328422958,1717371113809,-500.0,0.0003305,4]
[328422959,1717371113819,-500.0,0.0003305,4]
[328422960,1717371113830,-605.96,0.0003305,4]
[328422961,1717371113839,-539.36,0.0003305,4]
[328422962,1717371113849,-500.0,0.0003305,4]
[328422963,1717371113860,-500.0,0.0003305,4]
[328422964,1717371113870,-583.09123184,0.0003305,4]
[328422965,1717371113879,-296.75333924,0.0003305,4]
[328422966,1717371113888,-551.51115499,0.0003305,4]
[328422967,1717371113900,-500.0,0.0003305,4]
[328422968,1717371113911,-500.0,0.0003305,4]
[328422969,1717371113921,-500.0,0.0003305,4]
[328422970,1717371113931,-500.0,0.0003305,4]
[328422971,1717371113940,-500.0,0.0003305,4]
[328422972,1717371113950,-500.0,0.0003305,4]
[328422973,1717371113959,-500.0,0.0003305,4]
[328422974,1717371113969,-500.0,0.0003305,4]
[328422975,1717371113979,-500.0,0.0003305,4]
[328422976,1717371113988,-500.0,0.0003305,4]
[328422977,1717371113998,-530.80622114,0.0003305,4]
[328422978,1717371114008,-500.0,0.0003305,4]
[328422979,1717371114018,-389.08857562,0.0003305,4]
[328422980,1717371114028,-500.0,0.0003305,4]
[328422981,1717371114037,-500.0,0.0003305,4]
[328422982,1717371114047,-500.0,0.0003305,4]
[328422983,1717371114056,-500.0,0.0003305,4]
[328422984,1717371114066,-500.0,0.0003305,4]
[328422985,1717371114075,-500.0,0.0003305,4]
[328422986,1717371114085,-8095.33,0.0003305,4]
[328422987,1717371114095,-1817.32,0.0003305,4]
[328422988,1717371114105,-1662.32,0.0003305,4]
[328422989,1717371114115,-2228.05,0.0003305,4]
[328422990,1717371114124,-500.0,0.0003305,4]
[328422991,1717371114133,-2477.72,0.0003305,4]
[328422992,1717371114143,-500.0,0.0003305,4]
[328422993,1717371114153,-555.54,0.0003305,4]
[328422994,1717371114162,-176.95563878,0.0003305,4]
[328422995,1717371114172,-1251.87,0.0003305,4]
[328422996,1717371114182,-10414.42,0.0003305,4]
[328422997,1717371114192,-316.53689608,0.0003305,4]
[328422998,1717371114201,-500.0,0.0003305,4]
[328422999,1717371114211,-505.0,0.0003305,4]
[328423000,1717371114220,-1307.86,0.0003305,4]
[328423001,1717371114229,-463.03445618,0.0003305,4]
[328423002,1717371114239,-653.28,0.0003305,4]
[328423003,1717371114249,-500.0,0.0003305,4]
[328423004,1717371114258,-500.0,0.0003305,4]
[328423005,1717371114267,-591.49687875,0.0003305,4]
[328423006,1717371114277,-1861.34,0.0003305,4]
[328423007,1717371114286,-593.04093581,0.0003305,4]
[328423008,1717371114296,-500.0,0.0003305,4]
[328423009,1717371114305,-500.0,0.0003305,4]
[328423010,1717371114315,-3510.65,0.0003305,4]
[328423011,1717371114325,-500.0,0.0003305,4]
[328423012,1717371114334,-484.87994555,0.0003305,4]
[328423013,1717371114343,-1153.56,0.0003305,4]
[328423014,1717371114353,-606.11,0.0003305,4]
[328423015,1717371114362,-500.0,0.0003305,4]
[328423016,1717371114371,-743.26,0.0003305,4]
[328423017,1717371114380,-500.0,0.0003305,4]
[328423018,1717371114391,-870.16,0.0003305,4]
[328423019,1717371114400,-829.62,0.0003305,4]
[328423020,1717371114409,-1219.6,0.0003305,4]
[328423021,1717371114418,-500.0,0.0003305,4]
[328423022,1717371114428,-500.0,0.0003305,4]
[328423023,1717371114437,-500.0,0.0003305,4]
[328423024,1717371114447,-500.0,0.0003305,4]
[328423025,1717371114456,-500.0,0.0003305,4]
[328423026,1717371114466,-500.0,0.0003305,4]
[328423027,1717371114475,-500.0,0.0003305,4]
[328423028,1717371114485,-500.0,0.0003305,4]
[328423029,1717371114495,-500.0,0.0003305,4]
[328423030,1717371114504,-513.99,0.0003305,4]
[328423031,1717371114513,-500.0,0.0003305,4]
[328423032,1717371114522,-630.12231209,0.0003305,4]
[328423033,1717371114531,-500.0,0.0003305,4]
[328423034,1717371114540,-588.98,0.0003305,4]
[328423035,1717371114549,-500.0,0.0003305,4]
[328423036,1717371114559,-150.0,0.00033052,7]
[328423037,1717371114569,-150.0,0.00033081,7]
[328423038,1717371114578,-150.0,0.00033094,7]
[328423039,1717371114587,-236.20195885,0.00033096,30]
[328423040,1717371114596,-653.17226449,0.000331,2]
[328423041,1717371114605,-150.0,0.00033108,7]
[328423042,1717371114614,-335.86044935,0.0003311,2]
[328423043,1717371114624,-167.17887737,0.00033111,7]
[328423044,1717371114634,-150.0,0.00033144,7]
[328423045,1717371114643,-150.0,0.00033144,7]
[328423046,1717371114652,-150.0,0.00033144,7]
[328423047,1717371114661,-158.46460464,0.00033146,7]
[328423048,1717371114671,-150.0,0.00033179,7]
[328423049,1717371114680,-155.30149408,0.00033185,7]
[328423050,1717371114689,-166.3188502,0.00033188,2]
[328423051,1717371114699,-155.96669712,0.00033188,7]
[328423052,1717371114709,-150.0,0.00033193,7]
[328423053,1717371114721,-160.27340751,0.000332,2]
[328423054,1717371114731,-3753.36893321,0.000332,5]
[328423055,1717371114740,-331.66716166,0.000332,2]
[328423056,1717371114751,-150.0,0.00033206,7]
[328423057,1717371114761,-176.926326,0.00033216,7]
[328423058,1717371114770,-150.50047223,0.00033229,7]
[328423059,1717371114779,-236.20195885,0.00033233,30]
[328423060,1717371114790,-500.0,0.00033234,4]
[328423061,1717371114799,-500.0,0.00033234,4]
[328423062,1717371114809,-617.47,0.00033234,4]
[328423063,1717371114819,-500.0,0.00033234,4]
[328423064,1717371114829,-500.0,0.00033234,4]
[328423065,1717371114838,-705.6,0.00033234,4]
[328423066,1717371114847,-517.48,0.00033234,4]
[328423067,1717371114856,-607.53,0.00033234,4]
[328423068,1717371114865,-500.0,0.00033234,4]
[328423069,1717371114876,-1255.03,0.00033234,4]
[328423070,1717371114886,-574.85,0.00033234,4]
[328423071,1717371114895,-500.0,0.00033234,4]
[328423072,1717371114905,-500.0,0.00033234,4]
[328423073,1717371114914,-500.0,0.00033234,4]
[328423074,1717371114923,-500.0,0.00033234,4]
[328423075,1717371114932,-500.0,0.00033234,4]
[328423076,1717371114942,-500.0,0.00033234,4]
[328423077,1717371114951,-500.0,0.00033234,4]
[328423078,1717371114961,-570.33,0.00033234,4]
[328423079,1717371114970,-500.0,0.00033234,4]
[328423080,1717371114980,-551.69,0.00033234,4]
[328423081,1717371114989,-661.77,0.00033234,4]
[328423082,1717371114998,-500.0,0.00033234,4]
[328423083,1717371115008,-936.31,0.00033234,4]
[328423084,1717371115018,-522.4,0.00033234,4]
[328423085,1717371115027,-500.0,0.00033234,4]
[328423086,1717371115036,-500.0,0.00033234,4]
[328423087,1717371115046,-500.0,0.00033234,4]
[328423088,1717371115055,-1102.97,0.00033234,4]
[328423089,1717371115065,-831.18,0.00033234,4]
[328423090,1717371115075,-638.36,0.00033234,4]
[328423091,1717371115084,-820.06,0.00033234,4]
[328423092,1717371115093,-520.32,0.00033234,4]
[328423093,1717371115103,-1014.06,0.00033234,4]
[328423094,1717371115113,-500.0,0.00033234,4]
[328423095,1717371115122,-500.0,0.00033234,4]
[328423096,1717371115132,-567.86,0.00033234,4]
[328423097,1717371115141,-500.0,0.00033234,4]
[328423098,1717371115151,-592.44,0.00033234,4]
[328423099,1717371115161,-500.0,0.00033234,4]
[328423100,1717371115170,-516.74,0.00033234,4]
[328423101,1717371115179,-720.42,0.00033234,4]
[328423102,1717371115189,-675.63,0.00033234,4]
[328423103,1717371115198,-1147.72,0.00033234,4]
[328423104,1717371115207,-523.0,0.00033234,4]
[328423105,1717371115216,-500.0,0.00033234,4]
[328423106,1717371115226,-715.6,0.00033234,4]
[328423107,1717371115235,-653.66,0.00033234,4]
[328423108,1717371115244,-871.38,0.00033234,4]
[328423109,1717371115253,-554.83,0.00033234,4]
[328423110,1717371115263,-684.32,0.00033234,4]
[328423111,1717371115272,-500.0,0.00033234,4]
[328423112,1717371115281,-654.04,0.00033234,4]
[328423113,1717371115291,-500.0,0.00033234,4]
[328423114,1717371115300,-697.57,0.00033234,4]
[328423115,1717371115309,-500.0,0.00033234,4]
[328423116,1717371115318,-500.0,0.00033234,4]
[328423117,1717371115327,-789.05,0.00033234,4]
[328423118,1717371115336,-760.07,0.00033234,4]
[328423119,1717371115346,-500.0,0.00033234,4]
[328423120,1717371115356,-1212.31,0.00033234,4]
[328423121,1717371115365,-772.24,0.00033234,4]
[328423122,1717371115374,-375.21093168,0.00033234,4]
[328423123,1717371115383,-903.33,0.00033234,4]
[328423124,1717371115393,-1037.02,0.00033234,4]
[328423125,1717371115402,-904.38,0.00033234,4]
[328423126,1717371115411,-150.0,0.00033235,7]
[328423127,1717371115420,-500.0,0.0003325,4]
[328423128,1717371115430,-500.0,0.0003325,4]
[328423129,1717371115439,-500.0,0.0003325,4]
[328423130,1717371115451,-500.0,0.0003325,4]
[328423131,1717371115461,-500.0,0.0003325,4]
[328423132,1717371115470,-500.0,0.0003325,4]
[328423133,1717371115479,-976.87,0.0003325,4]
[328423134,1717371115488,-985.6,0.0003325,4]
[328423135,1717371115497,-500.0,0.0003325,4]
[328423136,1717371115506,-250.0,0.0003325,4]
[328423137,1717371115515,-573.23,0.0003325,4]
[328423138,1717371115525,-500.0,0.0003325,4]
[328423139,1717371115535,-500.0,0.0003325,4]
[328423140,1717371115544,-516.16,0.0003325,4]
[328423141,1717371115553,-500.0,0.0003325,2]
[328423142,1717371115563,-501.76,0.0003325,4]
[328423143,1717371115573,-500.0,0.0003325,4]
[328423144,1717371115582,-585.1,0.0003325,4]
[328423145,1717371115591,-500.0,0.0003325,4]
[328423146,1717371115600,-500.0,0.0003325,4]
[328423147,1717371115610,-224.59504573,0.0003325,4]
[328423148,1717371115619,-500.0,0.0003325,4]
[328423149,1717371115628,-557.17745308,0.0003325,4]
[328423150,1717371115637,-430.51332805,0.0003325,4]
[328423151,1717371115646,-565.05,0.0003325,4]
[328423152,1717371115655,-1084.19,0.0003325,4]
[328423153,1717371115665,-500.0,0.0003325,4]
[328423154,1717371115674,-405.96734335,0.0003325,4]
[328423155,1717371115683,-559.85,0.0003325,4]
[328423156,1717371115695,-686.33,0.0003325,4]
[328423157,1717371115704,-500.0,0.0003325,4]
[328423158,1717371115716,-500.0,0.0003325,4]
[328423159,1717371115725,-500.0,0.0003325,4]
[328423160,1717371115734,-594.62,0.0003325,4]
[328423161,1717371115742,-500.0,0.0003325,4]
[328423162,1717371115752,-612.26634841,0.0003325,4]
[328423163,1717371115762,-500.0,0.0003325,4]
[328423164,1717371115772,-500.0,0.0003325,4]
[328423165,1717371115781,-726.33,0.0003325,4]
[328423166,1717371115792,-500.0,0.0003325,4]
[328423167,1717371115801,-673.43,0.0003325,4]
[328423168,1717371115813,-500.0,0.0003325,4]
[328423169,1717371115822,-500.0,0.0003325,4]
[328423170,1717371115832,-500.0,0.0003325,4]
[328423171,1717371115841,-634.16,0.0003325,4]
[328423172,1717371115850,-610.74,0.0003325,4]
[328423173,1717371115859,-500.0,0.0003325,4]
[328423174,1717371115869,-715.05,0.0003325,4]
[328423175,1717371115879,-500.0,0.0003325,4]
[328423176,1717371115888,-500.0,0.0003325,4]
[328423177,1717371115897,-648.14,0.0003325,4]
[328423178,1717371115906,-500.0,0.0003325,4]
[328423179,1717371115915,-678.37,0.0003325,4]
[328423180,1717371115925,-500.0,0.0003325,4]
[328423181,1717371115934,-580.49,0.0003325,4]
[328423182,1717371115946,-616.98,0.0003325,4]
[328423183,1717371115955,-500.0,0.0003325,4]
[328423184,1717371115965,-562.17,0.0003325,4]
[328423185,1717371115973,-641.58,0.0003325,4]
[328423186,1717371115983,-500.0,0.0003325,4]
[328423187,1717371115992,-804.64,0.0003325,2]
[328423188,1717371116002,-931.07,0.0003325,4]
[328423189,1717371116011,-500.0,0.0003325,4]
[328423190,1717371116021,-800.9,0.0003325,4]
[328423191,1717371116031,-1483.14,0.0003325,4]
[328423192,1717371116039,-966.28,0.0003325,4]
[328423193,1717371116049,-500.0,0.0003325,4]
[328423194,1717371116058,-500.0,0.0003325,4]
[328423195,1717371116068,-500.0,0.0003325,4]
[328423196,1717371116077,-500.0,0.0003325,4]
[328423197,1717371116086,-500.0,0.0003325,4]
[328423198,1717371116096,-500.0,0.0003325,4]
[328423199,1717371116106,-1014.25,0.0003325,4]
[328423200,1717371116115,-500.0,0.0003325,4]
[328423201,1717371116125,-500.0,0.0003325,4]
[328423202,1717371116134,-500.0,0.0003325,4]
[328423203,1717371116144,-1282.94,0.0003325,4]
[328423204,1717371116154,-500.0,0.0003325,4]
[328423205,1717371116163,-816.22,0.0003325,4]
[328423206,1717371116173,-1358.74,0.0003325,4]
[328423207,1717371116183,-673.28,0.0003325,4]
[328423208,1717371116193,-500.0,0.0003325,4]
[328423209,1717371116202,-704.95,0.0003325,4]
[328423210,1717371116211,-500.0,0.0003325,4]
[328423211,1717371116219,-500.0,0.0003325,4]
[328423212,1717371116228,-500.0,0.0003325,4]
[328423213,1717371116238,-2030.46,0.0003325,4]